fUSD/lending_fUSD_20240625
["ID","MTS","AMOUNT","RATE_DAILY","PERIOD"]
[330408030,1719352245531,-500.0,0.00019178,2]
[330408031,1719352245542,-500.0,0.00019178,2]
[330408032,1719352245551,-563.36,0.00019178,2]
[330408033,1719352245561,-740.05,0.00019178,2]
[330408034,1719352245571,-500.0,0.00019178,2]
[330408035,1719352245581,-3565.11,0.00019178,2]
[330408036,1719352245591,-493.10635201,0.00019178,2]
[330408037,1719352245602,-1249.54,0.00019178,2]
[330408038,1719352245612,-1828.41,0.00019178,2]
[330408039,1719352245622,-1003.4,0.00019178,2]
[330408040,1719352245632,-500.0,0.00019178,2]
[330408041,1719352245641,-500.0,0.00019178,2]
[330408042,1719352245648,-1197.5,0.00019178,2]
[330408043,1719352245659,-500.0,0.00019178,2]
[330408044,1719352245667,-500.0,0.00019178,2]
[330408045,1719352245677,-906.6,0.00019178,2]
[330408046,1719352245687,-500.0,0.00019178,2]
[330408047,1719352245696,-500.0,0.00019178,2]
[330408048,1719352245705,-1209.71,0.00019178,2]
[330408049,1719352245714,-500.0,0.00019178,2]
[330408050,1719352245723,-730.85,0.00019178,2]
[330408051,1719352245733,-1093.41,0.00019178,2]
[330408052,1719352245742,-767.49,0.00019178,2]
[330408053,1719352245751,-399.89829085,0.00019178,2]
[330408054,1719352245788,-406.44,0.00019178,2]
[330408055,1719352245800,-442.88999996,0.00019178,2]
[330408056,1719352245811,-964.40170919,0.00019178,2]
[330408057,1719352245824,-500.0,0.00019178,2]
[330408060,1719352245833,-500.0,0.00019178,2]
[330408062,1719352245842,-542.84,0.00019178,2]
[330408064,1719352245851,-500.0,0.00019178,2]
[330408066,1719352245860,-500.0,0.00019178,2]
[330408068,1719352245869,-5821.33,0.00019178,2]
[330408069,1719352245877,-500.0,0.00019178,2]
[330408070,1719352245886,-1191.14,0.00019178,2]
[330408071,1719352245895,-500.0,0.00019178,2]
[330408072,1719352245906,-500.0,0.00019178,2]
[330408073,1719352245915,-1314.09,0.00019178,2]
[330408074,1719352245924,-1392.93,0.00019178,2]
[330408075,1719352245935,-547.64,0.00019178,2]
[330408076,1719352245946,-1044.97,0.00019178,2]
[330408077,1719352245955,-17949.52,0.00019178,2]
[330408078,1719352245963,-500.0,0.00019178,2]
[330408079,1719352245975,-515.99,0.00019178,2]
[330408080,1719352245984,-500.0,0.00019178,2]
[330408081,1719352245993,-940.94,0.00019178,2]
[330408082,1719352246003,-671.68,0.00019178,2]
[330408083,1719352246012,-500.0,0.00019178,2]
[330408084,1719352246022,-4900.69,0.00019178,2]
[330408085,1719352246032,-500.0,0.00019178,2]
[330408086,1719352246041,-367.5,0.00019178,2]
[330408087,1719352246050,-500.0,0.00019178,2]
[330408088,1719352246059,-5271.3,0.00019178,2]
[330408089,1719352246068,-597.4584897,0.00019178,2]
[330408090,1719352246077,-500.0,0.00019178,2]
[330408091,1719352246086,-500.0,0.00019178,2]
[330408092,1719352246095,-751.51,0.00019178,2]
[330408093,1719352246105,-500.0,0.00019178,2]
[330408094,1719352246115,-500.0,0.00019178,2]
[330408095,1719352246124,-500.0,0.00019178,2]
[330408096,1719352246133,-500.0,0.00019178,2]
[330408097,1719352246144,-500.0,0.00019178,2]
[330408098,1719352246156,-922.81,0.00019178,2]
[330408099,1719352246166,-3406.73,0.00019178,2]
[330408100,1719352246176,-500.0,0.00019178,2]
[330408101,1719352246187,-600.28,0.00019178,2]
[330408102,1719352246195,-500.0,0.00019178,2]
[330408103,1719352246205,-951.47,0.00019178,2]
[330408104,1719352246215,-500.0,0.00019178,2]
[330408105,1719352246224,-500.0,0.00019178,2]
[330408106,1719352246458,-500.0,0.00019178,2]
[330408107,1719352246468,-673.55,0.00019178,2]
[330408108,1719352246478,-1579.23,0.00019178,2]
[330408109,1719352246488,-500.0,0.00019178,2]
[330408110,1719352246497,-2027.38,0.00019178,2]
[330408111,1719352246507,-574.78,0.00019178,2]
[330408112,1719352246517,-500.0,0.00019178,2]
[330408113,1719352246527,-983.94,0.00019178,2]
[330408114,1719352246536,-500.0,0.00019178,2]
[330408115,1719352246545,-539.41,0.00019178,2]
[330408116,1719352246555,-1048.85,0.00019178,2]
[330408117,1719352246564,-500.0,0.00019178,2]
[330408118,1719352246574,-515.57,0.00019178,2]
[330408119,1719352246583,-3209.09,0.00019178,2]
[330408120,1719352246593,-639.21,0.00019178,2]
[330408121,1719352246603,-500.0,0.00019178,2]
[330408122,1719352246613,-10985.92,0.00019178,2]
[330408123,1719352246624,-500.0,0.00019178,2]
[330408124,1719352246634,-500.0,0.00019178,2]
[330408125,1719352246643,-500.0,0.00019178,2]
[330408126,1719352246656,-690.92,0.00019178,2]
[330408127,1719352246666,-500.0,0.00019178,2]
[330408128,1719352246678,-933.4,0.00019178,2]
[330408129,1719352246689,-500.0,0.00019178,2]
[330408130,1719352246698,-1609.87,0.00019178,2]
[330408131,1719352246709,-500.0,0.00019178,2]
[330408132,1719352246719,-500.0,0.00019178,2]
[330408133,1719352246728,-500.0,0.00019178,2]
[330408134,1719352246737,-500.0,0.00019178,2]
[330408135,1719352246747,-500.0,0.00019178,2]
[330408136,1719352246756,-5231.72,0.00019178,2]
[330408137,1719352246765,-500.0,0.00019178,2]
[330408138,1719352246774,-500.0,0.00019178,2]
[330408139,1719352246783,-1527.91,0.00019178,2]
[330408140,1719352246792,-557.58,0.00019178,2]
[330408141,1719352246802,-500.0,0.00019178,2]
[330408142,1719352246811,-500.0,0.00019178,2]
[330408143,1719352246825,-500.0,0.00019178,2]
[330408144,1719352246836,-2019.68,0.00019178,2]
[330408145,1719352246845,-1263.36,0.00019178,2]
[330408146,1719352246854,-896.87,0.00019178,2]
[330408147,1719352246865,-500.0,0.00019178,2]
[330408148,1719352246876,-500.0,0.00019178,2]
[330408149,1719352246885,-5130.51,0.00019178,2]
[330408150,1719352246894,-500.0,0.00019178,2]
[330408151,1719352246907,-500.0,0.00019178,2]
[330408152,1719352246916,-500.0,0.00019178,2]
[330408153,1719352246925,-500.0,0.00019178,2]
[330408154,1719352246934,-2592.47,0.00019178,2]
[330408155,1719352246944,-500.0,0.00019178,2]
[330408156,1719352246953,-531.61,0.00019178,2]
[330408157,1719352246962,-788.25,0.00019178,2]
[330408158,1719352246971,-2096.24,0.00019178,2]
[330408159,1719352246981,-500.0,0.00019178,2]
[330408160,1719352246990,-500.0,0.00019178,2]
[330408161,1719352246999,-500.0,0.00019178,2]
[330408162,1719352247009,-1694.14,0.00019178,2]
[330408163,1719352247018,-588.15,0.00019178,2]
[330408164,1719352247027,-1923.77,0.00019178,2]
[330408165,1719352247036,-500.0,0.00019178,2]
[330408166,1719352247045,-500.0,0.00019178,2]
[330408167,1719352247054,-603.68,0.00019178,2]
[330408168,1719352247063,-500.0,0.00019178,2]
[330408169,1719352247072,-976.6,0.00019178,2]
[330408170,1719352247081,-714.32,0.00019178,2]
[330408171,1719352247090,-1418.6,0.00019178,2]
[330408172,1719352247099,-500.0,0.00019178,2]
[330408173,1719352247108,-500.0,0.00019178,2]
[330408174,1719352247118,-926.82,0.00019178,2]
[330408175,1719352247127,-1625.35,0.00019178,2]
[330408176,1719352247136,-1247.78,0.00019178,2]
[330408177,1719352247145,-500.0,0.00019178,2]
[330408178,1719352247154,-500.0,0.00019178,2]
[330408179,1719352247163,-500.0,0.00019178,2]
[330408180,1719352247173,-1407.88,0.00019178,2]
[330408181,1719352247182,-500.0,0.00019178,2]
[330408182,1719352247191,-500.0,0.00019178,2]
[330408183,1719352247201,-1204.26,0.00019178,2]
[330408184,1719352247211,-384.58466999,0.00019178,2]
[330408185,1719352247220,-500.0,0.00019178,2]
[330408186,1719352247229,-912.56,0.00019178,2]
[330408187,1719352247238,-788.71,0.00019178,2]
[330408188,1719352247248,-16318.0351312,0.00019178,2]
[330408189,1719352247262,-2886.2648688,0.00019178,2]
[330408190,1719352247272,-1372.93,0.00019178,2]
[330408191,1719352247282,-500.0,0.00019178,2]
[330408192,1719352247291,-500.0,0.00019178,2]
[330408193,1719352247300,-1394.05,0.00019178,2]
[330408194,1719352247310,-1179.74,0.00019178,2]
[330408195,1719352247320,-698.02,0.00019178,2]
[330408196,1719352247330,-601.69,0.00019178,2]
[330408197,1719352247340,-500.0,0.00019178,2]
[330408198,1719352247350,-522.11016694,0.00019178,2]
[330408199,1719352247360,-470.64943924,0.00019178,2]
[330408200,1719352247369,-1063.43,0.00019178,2]
[330408201,1719352247379,-539.59,0.00019178,2]
[330408202,1719352247388,-61.57982011,0.00019178,2]
[330408203,1719352247402,-438.42017989,0.00019178,2]
[330408204,1719352247412,-500.0,0.00019178,2]
[330408205,1719352247421,-500.0,0.00019178,2]
[330408206,1719352247431,-974.18599411,0.00019178,2]
[330408207,1719352247443,-309.12639055,0.00019178,2]
[330408208,1719352247484,-163.89761534,0.00019178,2]
[330408209,1719352247493,-148.41839216,0.00019178,2]
[330408210,1719352247504,-351.58160784,0.00019178,2]
[330408211,1719352247514,-907.08,0.00019178,2]
[330408212,1719352247524,-500.0,0.00019178,2]
[330408213,1719352247533,-500.0,0.00019178,2]
[330408214,1719352247544,-112.81336059,0.00019178,2]
[330408215,1719352247555,-870.59663941,0.00019178,2]
[330408216,1719352247565,-1026.38220316,0.00019178,2]
[330408217,1719352247575,-2029.48779684,0.00019178,2]
[330408218,1719352247584,-828.83,0.00019178,2]
[330408219,1719352247593,-503.44197026,0.00019178,2]
[330408220,1719352247602,-7141.31,0.00019178,2]
[330408221,1719352247611,-764.97,0.00019178,2]
[330408222,1719352247621,-500.0,0.00019178,2]
[330408223,1719352247630,-500.0,0.00019178,2]
[330408224,1719352247639,-1273.2,0.00019178,2]
[330408225,1719352247648,-2361.25,0.00019178,2]
[330408226,1719352247657,-500.0,0.00019178,2]
[330408227,1719352247666,-964.67,0.00019178,2]
[330408228,1719352247676,-318.68587388,0.00019178,2]
[330408229,1719352247686,-956.9,0.00019178,2]
[330408230,1719352247695,-1172.67,0.00019178,2]
[330408231,1719352247704,-500.0,0.00019178,2]
[330408232,1719352247714,-151.0,0.00019178,2]
[330408233,1719352247723,-500.0,0.00019178,2]
[330408234,1719352247732,-232.119926,0.00019178,2]
[330408235,1719352247741,-500.0,0.00019178,2]
[330408236,1719352247750,-500.0,0.00019178,2]
[330408237,1719352247759,-1025.54,0.00019178,2]
[330408238,1719352247768,-500.0,0.00019178,2]
[330408239,1719352247777,-3781.23,0.00019178,2]
[330408240,1719352247786,-500.0,0.00019178,2]
[330408241,1719352247795,-2345.6,0.00019178,2]
[330408242,1719352247804,-500.0,0.00019178,2]
[330408243,1719352247814,-1845.86,0.00019178,2]
[330408244,1719352247827,-738.71,0.00019178,2]
[330408245,1719352247837,-500.0,0.00019178,2]
[330408246,1719352247846,-616.47,0.00019178,2]
[330408247,1719352247855,-854.12,0.00019178,2]
[330408248,1719352247865,-3326.98,0.00019178,2]
[330408249,1719352247874,-500.0,0.00019178,2]
[330408250,1719352247883,-876.38,0.00019178,2]
[330408251,1719352247892,-707.74,0.00019178,2]
[330408252,1719352247902,-500.0,0.00019178,2]
[330408253,1719352247913,-610.76,0.00019178,2]
[330408254,1719352247922,-657.99,0.00019178,2]
[330408255,1719352247932,-500.0,0.00019178,2]
[330408256,1719352247942,-1085.67,0.00019178,2]
[330408257,1719352247951,-250.0,0.00019178,2]
[330408258,1719352247960,-409.51791819,0.00019223,2]
[330408259,1719352247969,-440.06610721,0.0001924,2]
[330408260,1719352247978,-988.84828,0.0001926,2]
[330408261,1719352247988,-500.0,0.00019296,2]
[330408262,1719352247997,-444.01006687,0.00019331,2]
[330408263,1719352248006,-269.27286365,0.00019338,2]
[330408264,1719352248016,-307.97977309,0.00019338,2]
[330408265,1719352248026,-235.27505482,0.00019338,2]
[330408266,1719352248035,-155.0,0.00019338,2]
[330408267,1719352248044,-186.33834046,0.00019352,2]
[330408268,1719352248053,-577.0,0.00019352,2]
[330408269,1719352248062,-2169.17449144,0.00019413,2]
[330408270,1719352248072,-811.937429,0.00019413,2]
[330408271,1719352248081,-4153.59058667,0.00019425,2]
[330408272,1719352248090,-1000.0,0.00019432,2]
[330408273,1719352248099,-500.0,0.00019432,2]
[330408274,1719352248109,-500.0,0.00019451,2]
[330408275,1719352248119,-7781.82,0.00019451,2]
[330408276,1719352248128,-3628.98,0.00019451,2]
[330408277,1719352248137,-983.02,0.00019451,2]
[330408278,1719352248147,-2876.46,0.00019452,2]
[330408279,1719352248156,-2876.46,0.00019452,2]
[330408280,1719352248165,-759.83,0.00019452,2]
[330408281,1719352248175,-2537.89,0.00019452,2]
[330408282,1719352248184,-500.0,0.00019452,2]
[330408283,1719352248193,-3637.2,0.00019452,2]
[330408284,1719352248203,-500.0,0.00019452,2]
[330408285,1719352248212,-500.0,0.00019452,2]
[330408286,1719352248221,-500.0,0.00019452,2]
[330408287,1719352248231,-466.90575396,0.00019452,2]
[330408288,1719352248240,-500.0,0.00019452,2]
[330408289,1719352248249,-500.0,0.00019452,2]
[330408290,1719352248258,-500.0,0.00019452,2]
[330408291,1719352248267,-549.65,0.00019452,2]
[330408292,1719352248277,-500.0,0.00019452,2]
[330408293,1719352248286,-500.0,0.00019452,2]
[330408294,1719352248295,-500.0,0.00019452,2]
[330408295,1719352248304,-500.0,0.00019452,2]
[330408296,1719352248314,-500.0,0.00019452,2]
[330408297,1719352248323,-500.0,0.00019452,2]
[330408298,1719352248332,-500.0,0.00019452,2]
[330408299,1719352248341,-335.72520059,0.00019452,2]
[330408300,1719352248351,-509.18,0.00019452,2]
[330408301,1719352248360,-500.0,0.00019452,2]
[330408302,1719352248369,-391.13010746,0.00019452,2]
[330408303,1719352248379,-500.0,0.00019452,2]
[330408304,1719352248388,-605.12,0.00019452,2]
[330408305,1719352248397,-500.0,0.00019452,2]
[330408306,1719352248407,-500.0,0.00019452,2]
[330408307,1719352248416,-554.69,0.00019452,2]
[330408308,1719352248425,-500.0,0.00019452,2]
[330408309,1719352248434,-682.34,0.00019452,2]
[330408310,1719352248444,-500.0,0.00019452,2]
[330408311,1719352248453,-500.0,0.00019452,2]
[330408312,1719352248462,-500.0,0.00019452,2]
[330408313,1719352248472,-506.19,0.00019452,2]
[330408314,1719352248481,-500.0,0.00019452,2]
[330408315,1719352248490,-500.0,0.00019452,2]
[330408316,1719352248499,-500.0,0.00019452,2]
[330408317,1719352248509,-500.0,0.00019452,2]
[330408318,1719352248518,-500.0,0.00019452,2]
[330408319,1719352248528,-500.0,0.00019452,2]
[330408320,1719352248537,-500.0,0.00019452,2]
[330408321,1719352248546,-500.0,0.00019452,2]
[330408322,1719352248556,-538.11,0.00019452,2]
[330408323,1719352248565,-753.63,0.00019452,2]
[330408324,1719352248574,-1651.12,0.00019452,2]
[330408325,1719352248583,-500.0,0.00019452,2]
[330408326,1719352248592,-500.0,0.00019452,2]
[330408327,1719352248602,-437.999423,0.00019452,2]
[330408328,1719352248611,-500.0,0.00019452,2]
[330408329,1719352248621,-500.0,0.00019452,2]
[330408330,1719352248630,-614.35,0.00019452,2]
[330408331,1719352248639,-500.0,0.00019452,2]
[330408332,1719352248647,-500.0,0.00019452,2]
[330408333,1719352248658,-500.0,0.00019452,2]
[330408334,1719352248668,-500.0,0.00019452,2]
[330408335,1719352248678,-500.0,0.00019452,2]
[330408336,1719352248688,-684.59,0.00019452,2]
[330408337,1719352248697,-500.0,0.00019452,2]
[330408338,1719352248708,-500.0,0.00019452,2]
[330408339,1719352248717,-832.65,0.00019452,2]
[330408340,1719352248808,-500.0,0.00019452,2]
[330408341,1719352248821,-542.1,0.00019452,2]
[330408342,1719352248833,-500.0,0.00019452,2]
[330408343,1719352248845,-535.59,0.00019452,2]
[330408344,1719352248854,-500.0,0.00019452,2]
[330408345,1719352248864,-233.49787956,0.00019452,2]
[330408346,1719352248874,-340.6224766,0.00019452,2]
[330408347,1719352248885,-500.0,0.00019452,2]
[330408348,1719352248894,-500.0,0.00019452,2]
[330408349,1719352248905,-500.0,0.00019452,2]
[330408350,1719352248914,-500.0,0.00019452,2]
[330408351,1719352248923,-151.0,0.00019452,2]
[330408352,1719352248932,-500.0,0.00019452,2]
[330408353,1719352248941,-151.0,0.00019452,2]
[330408354,1719352248950,-500.0,0.00019452,2]
[330408355,1719352248960,-593.36,0.00019452,2]
[330408356,1719352248968,-500.0,0.00019452,2]
[330408357,1719352248977,-500.0,0.00019452,2]
[330408358,1719352248987,-500.0,0.00019452,2]
[330408359,1719352248996,-500.0,0.00019452,2]
[330408360,1719352249006,-699.52,0.00019452,2]
[330408361,1719352249016,-500.0,0.00019452,2]
[330408362,1719352249026,-609.32,0.00019452,2]
[330408363,1719352249036,-500.0,0.00019452,2]
[330408364,1719352249045,-949.7,0.00019452,2]
[330408365,1719352249054,-500.0,0.00019452,2]
[330408366,1719352249063,-723.26,0.00019452,2]
[330408367,1719352249071,-548.3,0.00019452,2]
[330408368,1719352249080,-500.0,0.00019452,2]
[330408369,1719352249090,-500.0,0.00019452,2]
[330408370,1719352249100,-500.0,0.00019452,2]
[330408371,1719352249110,-873.66,0.00019452,2]
[330408372,1719352249120,-500.0,0.00019452,2]
[330408373,1719352249129,-500.0,0.00019452,2]
[330408374,1719352249138,-500.0,0.00019452,2]
[330408375,1719352249147,-500.0,0.00019452,2]
[330408376,1719352249157,-500.0,0.00019452,2]
[330408377,1719352249166,-500.0,0.00019452,2]
[330408378,1719352249175,-500.0,0.00019452,2]
[330408379,1719352249186,-500.0,0.00019452,2]
[330408380,1719352249194,-500.0,0.00019452,2]
[330408381,1719352249203,-500.0,0.00019452,2]
[330408382,1719352249215,-500.0,0.00019452,2]
[330408383,1719352249224,-1089.98,0.00019452,2]
[330408384,1719352249233,-625.89,0.00019452,2]
[330408385,1719352249242,-2163.15,0.00019452,2]
[330408386,1719352249251,-757.94,0.00019452,2]
[330408387,1719352249259,-500.0,0.00019452,2]
[330408388,1719352249268,-500.0,0.00019452,2]
[330408389,1719352249277,-500.0,0.00019452,2]
[330408390,1719352249286,-1030.95,0.00019452,2]
[330408391,1719352249295,-502.64,0.00019452,2]
[330408392,1719352249304,-500.0,0.00019452,2]
[330408393,1719352249314,-500.0,0.00019452,2]
[330408394,1719352249324,-500.0,0.00019452,2]
[330408395,1719352249333,-500.0,0.00019452,2]
[330408396,1719352249343,-1022.58,0.00019452,2]
[330408397,1719352249353,-500.0,0.00019452,2]
[330408398,1719352249363,-1528.65,0.00019452,2]
[330408399,1719352249372,-500.0,0.00019452,2]
[330408400,1719352249381,-500.0,0.00019452,2]
[330408401,1719352249390,-151.0,0.00019452,2]
[330408402,1719352249400,-151.0,0.00019452,2]
[330408403,1719352249410,-659.81,0.00019452,2]
[330408404,1719352249419,-152.022173,0.00019452,2]
[330408405,1719352249428,-500.0,0.00019452,2]
[330408406,1719352249440,-500.0,0.00019452,2]
[330408407,1719352249449,-500.0,0.00019452,2]
[330408408,1719352249458,-500.0,0.00019452,2]
[330408409,1719352249468,-500.0,0.00019452,2]
[330408410,1719352249477,-510.07,0.00019452,2]
[330408411,1719352249486,-592.57,0.00019452,2]
[330408412,1719352249496,-861.71,0.00019452,2]
[330408413,1719352249505,-500.0,0.00019452,2]
[330408414,1719352249515,-500.0,0.00019452,2]
[330408415,1719352249525,-500.0,0.00019452,2]
[330408416,1719352249534,-500.0,0.00019452,2]
[330408417,1719352249544,-500.0,0.00019452,2]
[330408418,1719352249553,-500.0,0.00019452,2]
[330408419,1719352249562,-500.0,0.00019452,2]
[330408420,1719352249572,-2500.29,0.00019452,2]
[330408421,1719352249581,-500.0,0.00019452,2]
[330408422,1719352249591,-500.0,0.00019452,2]
[330408423,1719352249600,-500.0,0.00019452,2]
[330408424,1719352249610,-1186.21,0.00019452,2]
[330408425,1719352249619,-692.82,0.00019452,2]
[330408426,1719352249627,-698.04,0.00019452,2]
[330408427,1719352249636,-500.0,0.00019452,2]
[330408428,1719352249645,-1222.4,0.00019452,2]
[330408429,1719352249654,-500.0,0.00019452,2]
[330408430,1719352249664,-500.0,0.00019452,2]
[330408431,1719352249673,-500.0,0.00019452,2]
[330408432,1719352249684,-709.75,0.00019452,2]
[330408433,1719352249693,-501.4325078,0.00019452,2]
[330408434,1719352249702,-1311.36,0.00019452,2]
[330408435,1719352249711,-500.0,0.00019452,2]
[330408436,1719352249720,-500.0,0.00019452,2]
[330408437,1719352249729,-500.0,0.00019452,2]
[330408438,1719352249738,-803.95,0.00019452,2]
[330408439,1719352249747,-542.27,0.00019452,2]
[330408440,1719352249757,-1273.68,0.00019452,2]
[330408441,1719352249766,-500.0,0.00019452,2]
[330408442,1719352249775,-500.0,0.00019452,2]
[330408443,1719352249785,-500.0,0.00019452,2]
[330408444,1719352249795,-532.82,0.00019452,2]
[330408445,1719352249805,-504.43,0.00019452,2]
[330408446,1719352249816,-1861.83,0.00019452,2]
[330408447,1719352249832,-500.0,0.00019452,2]
[330408448,1719352249841,-1201.55,0.00019452,2]
[330408449,1719352249849,-701.27,0.00019452,2]
[330408450,1719352249859,-500.0,0.00019452,2]
[330408451,1719352249869,-589.39,0.00019452,2]
[330408452,1719352249878,-621.3942211,0.00019452,2]
[330408453,1719352249887,-819.05,0.00019452,2]
[330408454,1719352249896,-592.01929201,0.00019452,2]
[330408455,1719352249906,-525.15,0.00019452,2]
[330408456,1719352249915,-1470.72,0.00019452,2]
[330408457,1719352249924,-720.42,0.00019452,2]
[330408458,1719352249933,-736.86,0.00019452,2]
[330408459,1719352249942,-941.62,0.00019452,2]
[330408460,1719352249951,-751.41,0.00019452,2]
[330408461,1719352249960,-754.44,0.00019452,2]
[330408462,1719352249969,-500.0,0.00019452,2]
[330408463,1719352249978,-500.0,0.00019452,2]
[330408464,1719352249987,-928.55,0.00019452,2]
[330408465,1719352249996,-579.87,0.00019452,2]
[330408466,1719352250005,-500.0,0.00019452,2]
[330408467,1719352250014,-1418.92,0.00019452,2]
[330408468,1719352250023,-500.0,0.00019452,2]
[330408469,1719352250032,-500.0,0.00019452,2]
[330408470,1719352250041,-1179.04,0.00019452,2]
[330408471,1719352250050,-500.0,0.00019452,2]
[330408472,1719352250060,-500.0,0.00019452,2]
[330408473,1719352250068,-1138.14,0.00019452,2]
[330408474,1719352250077,-23336.74,0.00019452,2]
[330408475,1719352250086,-500.0,0.00019452,2]
[330408476,1719352250096,-500.0,0.00019452,2]
[330408477,1719352250104,-500.0,0.00019452,2]
[330408478,1719352250113,-1009.99,0.00019452,2]
[330408479,1719352250123,-1171.87,0.00019452,2]
[330408480,1719352250131,-500.0,0.00019452,2]
[330408481,1719352250141,-500.0,0.00019452,2]
[330408482,1719352250150,-1234.67,0.00019452,2]
[330408483,1719352250160,-1810.67,0.00019452,2]
[330408484,1719352250170,-500.0,0.00019452,2]
[330408485,1719352250179,-502.88,0.00019452,2]
[330408486,1719352250189,-500.0,0.00019452,2]
[330408487,1719352250198,-17527.63,0.00019452,2]
[330408488,1719352250207,-500.0,0.00019452,2]
[330408489,1719352250217,-500.0,0.00019452,2]
[330408490,1719352250227,-1990.38,0.00019452,2]
[330408491,1719352250238,-500.0,0.00019452,2]
[330408492,1719352250250,-1119.55,0.00019452,2]
[330408493,1719352250260,-4444.96,0.00019452,2]
[330408494,1719352250269,-522.21,0.00019452,2]
[330408495,1719352250278,-500.0,0.00019452,2]
[330408496,1719352250287,-647.41,0.00019452,2]
[330408497,1719352250296,-844.39,0.00019452,2]
[330408498,1719352250305,-500.0,0.00019452,2]
[330408499,1719352250317,-1391.33,0.00019452,2]
[330408500,1719352250326,-500.0,0.00019452,2]
[330408501,1719352250336,-1178.79,0.00019452,2]
[330408502,1719352250347,-894.19,0.00019452,2]
[330408503,1719352250356,-714.36,0.00019452,2]
[330408504,1719352250365,-500.0,0.00019452,2]
[330408505,1719352250375,-1256.55,0.00019452,2]
[330408506,1719352250384,-2489.1,0.00019452,2]
[330408507,1719352250393,-611.01,0.00019452,2]
[330408508,1719352250402,-915.74,0.00019452,2]
[330408509,1719352250411,-500.0,0.00019452,2]
[330408510,1719352250420,-503.65,0.00019452,2]
[330408511,1719352250429,-1139.03,0.00019452,2]
[330408512,1719352250439,-500.0,0.00019452,2]
[330408513,1719352250448,-500.0,0.00019452,2]
[330408514,1719352250457,-500.0,0.00019452,2]
[330408515,1719352250467,-500.0,0.00019452,2]
[330408516,1719352250476,-611.41,0.00019452,2]
[330408517,1719352250486,-500.0,0.00019452,2]
[330408518,1719352250497,-548.93,0.00019452,2]
[330408519,1719352250506,-799.1,0.00019452,2]
[330408520,1719352250515,-500.0,0.00019452,2]
[330408521,1719352250525,-642.88780869,0.00019452,2]
[330408522,1719352250534,-614.37,0.00019452,2]
[330408523,1719352250543,-970.3,0.00019452,2]
[330408524,1719352250553,-500.0,0.00019452,2]
[330408525,1719352250563,-1246.72,0.00019452,2]
[330408526,1719352250572,-852.74,0.00019452,2]
[330408527,1719352250581,-524.43,0.00019452,2]
[330408528,1719352250590,-540.14,0.00019452,2]
[330408529,1719352250600,-500.0,0.00019452,2]
[330408530,1719352250609,-1108.97,0.00019452,2]
[330408531,1719352250619,-500.0,0.00019452,2]
[330408532,1719352250628,-500.0,0.00019452,2]
[330408533,1719352250638,-500.0,0.00019452,2]
[330408534,1719352250650,-500.0,0.00019452,2]
[330408535,1719352250660,-500.0,0.00019452,2]